[Event "*** Titled Tuesday Blitz"]
[Site "Chess.com"]
[Date "2020.05.05"]
[Round "8"]
[White "Konavets"]
[Black "DrVelja"]
[Result "1/2-1/2"]
[WhiteElo "2917"]
[BlackElo "2654"]
[TimeControl "180+1"]
[EndTime "11:36:35 PDT"]
[Termination "Game drawn by 50-move rule"]

1. d4 {[%clk 0:02:45.4]} 1... Nf6 {[%clk 0:02:59.8]} 2. Nf3 {[%clk 0:02:46.3]}
2... g6 {[%clk 0:02:59.9]} 3. c4 {[%clk 0:02:47.2]} 3... Bg7 {[%clk 0:03:00.4]}
4. Nc3 {[%clk 0:02:48]} 4... d5 {[%clk 0:03:00.8]} 5. cxd5 {[%clk 0:02:48.9]}
5... Nxd5 {[%clk 0:03:01.5]} 6. e4 {[%clk 0:02:49.8]} 6... Nxc3 {[%clk
0:03:01.1]} 7. bxc3 {[%clk 0:02:50.7]} 7... c5 {[%clk 0:03:01.8]} 8. Rb1 {[%clk
0:02:51.6]} 8... O-O {[%clk 0:03:01.4]} 9. Be2 {[%clk 0:02:50.8]} 9... cxd4
{[%clk 0:03:01.6]} 10. cxd4 {[%clk 0:02:50.9]} 10... Qa5+ {[%clk 0:03:01.8]} 11.
Bd2 {[%clk 0:02:51.6]} 11... Qxa2 {[%clk 0:03:02.4]} 12. O-O {[%clk 0:02:52.5]}
12... Bg4 {[%clk 0:03:02.8]} 13. Bg5 {[%clk 0:02:51.5]} 13... h6 {[%clk
0:03:03.3]} 14. Be3 {[%clk 0:02:52.2]} 14... Nc6 {[%clk 0:03:03.2]} 15. d5
{[%clk 0:02:52.6]} 15... Ne5 {[%clk 0:03:03.7]} 16. Rxb7 {[%clk 0:02:51.3]}
16... a5 {[%clk 0:03:04]} 17. Rxe7 {[%clk 0:02:51.5]} 17... a4 {[%clk
0:03:02.6]} 18. Rb7 {[%clk 0:02:51.6]} 18... a3 {[%clk 0:02:44.5]} 19. Re1
{[%clk 0:02:50.7]} 19... Rfb8 {[%clk 0:02:11.7]} 20. Rxb8+ {[%clk 0:01:26.7]}
20... Rxb8 {[%clk 0:02:12.6]} 21. d6 {[%clk 0:01:27.4]} 21... Bxf3 {[%clk
0:01:38.3]} 22. gxf3 {[%clk 0:01:26.4]} 22... Qe6 {[%clk 0:01:38.8]} 23. f4
{[%clk 0:01:26.5]} 23... a2 {[%clk 0:01:39]} 24. fxe5 {[%clk 0:01:24]} 24... Rb1
{[%clk 0:01:28.9]} 25. Qxb1 {[%clk 0:01:16.1]} 25... axb1=Q {[%clk 0:01:28.5]}
26. Rxb1 {[%clk 0:01:17]} 26... Bxe5 {[%clk 0:01:27.8]} 27. Rb6 {[%clk
0:01:15.3]} 27... Bxd6 {[%clk 0:01:09.9]} 28. Bf4 {[%clk 0:01:13.2]} 28... Qxe4
{[%clk 0:01:08.7]} 29. Bxd6 {[%clk 0:01:13.5]} 29... Qxe2 {[%clk 0:01:07.2]} 30.
Bg3 {[%clk 0:01:11.1]} 30... Qd1+ {[%clk 0:01:05.8]} 31. Kg2 {[%clk 0:01:10.7]}
31... Qd5+ {[%clk 0:01:06.7]} 32. Kg1 {[%clk 0:01:11.1]} 32... Kg7 {[%clk
0:01:06.6]} 33. h4 {[%clk 0:01:11.2]} 33... h5 {[%clk 0:01:00.6]} 34. Rb1 {[%clk
0:01:10]} 34... f6 {[%clk 0:00:59.2]} 35. Kh2 {[%clk 0:01:07.9]} 35... g5 {[%clk
0:00:59.2]} 36. hxg5 {[%clk 0:01:07.3]} 36... fxg5 {[%clk 0:00:59.2]} 37. Re1
{[%clk 0:01:08]} 37... h4 {[%clk 0:00:55.2]} 38. Bxh4 {[%clk 0:01:08.5]} 38...
gxh4 {[%clk 0:00:52.9]} 39. Re3 {[%clk 0:01:08.6]} 39... Qf5 {[%clk 0:00:41.9]}
40. Kg2 {[%clk 0:01:08.5]} 40... Kg6 {[%clk 0:00:41.6]} 41. Rh3 {[%clk
0:01:08.7]} 41... Qg4+ {[%clk 0:00:41.5]} 42. Kh2 {[%clk 0:01:08.7]} 42... Kf5
{[%clk 0:00:40.9]} 43. Re3 {[%clk 0:01:08.9]} 43... Qf4+ {[%clk 0:00:40.8]} 44.
Kg2 {[%clk 0:01:08.7]} 44... Kg4 {[%clk 0:00:40.7]} 45. Rh3 {[%clk 0:01:08.7]}
45... Qd4 {[%clk 0:00:36.5]} 46. Re3 {[%clk 0:01:08.5]} 46... Kg5 {[%clk
0:00:32.6]} 47. Rh3 {[%clk 0:01:08.3]} 47... Qg4+ {[%clk 0:00:33.1]} 48. Kh2
{[%clk 0:01:08.7]} 48... Qe4 {[%clk 0:00:31.1]} 49. Re3 {[%clk 0:01:08.4]} 49...
Qb1 {[%clk 0:00:31]} 50. Kg2 {[%clk 0:01:07.4]} 50... Qd1 {[%clk 0:00:31.5]} 51.
Rh3 {[%clk 0:01:07.2]} 51... Kg4 {[%clk 0:00:31.8]} 52. Re3 {[%clk 0:01:07.2]}
52... Qd2 {[%clk 0:00:28.9]} 53. Rh3 {[%clk 0:01:06.8]} 53... Qd5+ {[%clk
0:00:28.7]} 54. Kh2 {[%clk 0:01:06.5]} 54... Qf7 {[%clk 0:00:26.8]} 55. Kg2
{[%clk 0:01:06.5]} 55... Qb7+ {[%clk 0:00:26.9]} 56. Kh2 {[%clk 0:01:06.8]}
56... Qb6 {[%clk 0:00:26.4]} 57. Kg2 {[%clk 0:01:06.8]} 57... Qc6+ {[%clk
0:00:24.7]} 58. Kh2 {[%clk 0:01:07.2]} 58... Qc4 {[%clk 0:00:21.3]} 59. Kg2
{[%clk 0:01:06.8]} 59... Kf5 {[%clk 0:00:20.1]} 60. Re3 {[%clk 0:01:06]} 60...
Qg4+ {[%clk 0:00:20.5]} 61. Kh2 {[%clk 0:01:06.2]} 61... Kf4 {[%clk 0:00:21]}
62. Rh3 {[%clk 0:01:06.1]} 62... Ke5 {[%clk 0:00:20.8]} 63. Re3+ {[%clk
0:01:06.1]} 63... Kd4 {[%clk 0:00:21.2]} 64. Rh3 {[%clk 0:01:06.4]} 64... Qf4+
{[%clk 0:00:20.1]} 65. Kg2 {[%clk 0:01:06.7]} 65... Qg4+ {[%clk 0:00:18.3]} 66.
Kh2 {[%clk 0:01:06.8]} 66... Ke5 {[%clk 0:00:18.7]} 67. Re3+ {[%clk 0:01:06.5]}
67... Kf6 {[%clk 0:00:19.6]} 68. Rh3 {[%clk 0:01:07.1]} 68... Qd4 {[%clk
0:00:18.3]} 69. Kg2 {[%clk 0:01:07.1]} 69... Kg5 {[%clk 0:00:18.5]} 70. Re3
{[%clk 0:01:07.4]} 70... Qh8 {[%clk 0:00:16.1]} 71. Rh3 {[%clk 0:01:07.3]} 71...
Kg4 {[%clk 0:00:16.6]} 72. Kh2 {[%clk 0:01:07.7]} 72... Qh7 {[%clk 0:00:16.3]}
73. Kg2 {[%clk 0:01:08.2]} 73... Qg6 {[%clk 0:00:16]} 74. Kh2 {[%clk 0:01:07.7]}
74... Qh5 {[%clk 0:00:15.7]} 75. Kg2 {[%clk 0:01:07.6]} 75... Qh8 {[%clk
0:00:16.1]} 76. Kh2 {[%clk 0:01:07.8]} 76... Kf4 {[%clk 0:00:15.5]} 77. Kg2
{[%clk 0:01:08]} 77... Qh5 {[%clk 0:00:15.2]} 78. Kh2 {[%clk 0:01:08.2]} 78...
Qe2 {[%clk 0:00:13.7]} 79. Kg2 {[%clk 0:01:08.4]} 79... Kg4 {[%clk 0:00:13.1]}
80. Re3 {[%clk 0:01:07.5]} 80... Qd1 {[%clk 0:00:10.5]} 81. Rh3 {[%clk
0:01:07.4]} 81... Qd5+ {[%clk 0:00:10.9]} 82. Kh2 {[%clk 0:01:07.5]} 82... Qe5+
{[%clk 0:00:11.4]} 83. Kg2 {[%clk 0:01:07.7]} 83... Qe2 {[%clk 0:00:11.3]} 84.
Re3 {[%clk 0:01:07.5]} 84... Qd1 {[%clk 0:00:11.5]} 85. Rh3 {[%clk 0:01:07.4]}
85... Qd7 {[%clk 0:00:11.9]} 86. Re3 {[%clk 0:01:07.1]} 86... Kf4 {[%clk
0:00:12.2]} 87. Rh3 {[%clk 0:01:07.1]} 87... Qg4+ {[%clk 0:00:12.6]} 88. Kh2
{[%clk 0:01:07.3]} 88... Kf5 {[%clk 0:00:11.5]} 1/2-1/2

[Event "*** Titled Tuesday Blitz"]
[Site "Chess.com"]
[Date "2020.05.05"]
[Round "8"]
[White "Jumbo"]
[Black "Leonid_Starozhilov"]
[Result "1-0"]
[WhiteElo "2873"]
[BlackElo "2644"]
[TimeControl "180+1"]
[EndTime "11:36:35 PDT"]
[Termination "Jumbo won by checkmate"]

1. d4 {[%clk 0:03:00.9]} 1... Nf6 {[%clk 0:02:59.6]} 2. Bf4 {[%clk 0:03:01.4]}
2... d5 {[%clk 0:02:57.3]} 3. e3 {[%clk 0:03:01.8]} 3... Bg4 {[%clk 0:02:57.4]}
4. Qd3 {[%clk 0:02:57.3]} 4... c6 {[%clk 0:02:53.7]} 5. Qb3 {[%clk 0:02:54.1]}
5... Qb6 {[%clk 0:02:50.3]} 6. c4 {[%clk 0:02:53.4]} 6... dxc4 {[%clk 0:02:28]}
7. Bxc4 {[%clk 0:02:51.5]} 7... e6 {[%clk 0:02:22.6]} 8. Nc3 {[%clk 0:02:43]}
8... Be7 {[%clk 0:02:07.1]} 9. Nge2 {[%clk 0:02:42.2]} 9... Bxe2 {[%clk
0:02:06]} 10. Kxe2 {[%clk 0:02:39.3]} 10... Nbd7 {[%clk 0:01:57.5]} 11. h3
{[%clk 0:02:36.9]} 11... O-O {[%clk 0:01:52.9]} 12. Rhd1 {[%clk 0:02:32.9]}
12... Nd5 {[%clk 0:01:48.3]} 13. Bh2 {[%clk 0:02:32.7]} 13... N7f6 {[%clk
0:01:41.6]} 14. Kf1 {[%clk 0:02:26.8]} 14... Rfd8 {[%clk 0:01:35.5]} 15. Rab1
{[%clk 0:02:09.6]} 15... Rac8 {[%clk 0:01:03.3]} 16. Rbc1 {[%clk 0:02:04.2]}
16... h6 {[%clk 0:00:55.3]} 17. a3 {[%clk 0:02:03.7]} 17... Bd6 {[%clk
0:00:41.5]} 18. Bg1 {[%clk 0:01:43.3]} 18... Be7 {[%clk 0:00:30.2]} 19. f3
{[%clk 0:01:39]} 19... Nxc3 {[%clk 0:00:29.3]} 20. Rxc3 {[%clk 0:01:29.5]} 20...
Qc7 {[%clk 0:00:27.4]} 21. Rc2 {[%clk 0:01:16.1]} 21... a6 {[%clk 0:00:23.8]}
22. Qc3 {[%clk 0:01:01.2]} 22... Qd7 {[%clk 0:00:22.9]} 23. Rcd2 {[%clk
0:00:58.7]} 23... Nd5 {[%clk 0:00:22.1]} 24. Qd3 {[%clk 0:00:59]} 24... b5
{[%clk 0:00:21.9]} 25. Bb3 {[%clk 0:00:58.8]} 25... Bg5 {[%clk 0:00:21.3]} 26.
Qe2 {[%clk 0:00:56.4]} 26... Qe7 {[%clk 0:00:20.1]} 27. f4 {[%clk 0:00:54.8]}
27... Bf6 {[%clk 0:00:16.6]} 28. Qf3 {[%clk 0:00:55.2]} 28... Nb6 {[%clk
0:00:12.1]} 29. e4 {[%clk 0:00:50.9]} 29... g6 {[%clk 0:00:11.5]} 30. Rc2 {[%clk
0:00:49]} 30... Qd7 {[%clk 0:00:08.7]} 31. Rcc1 {[%clk 0:00:45.6]} 31... Bg7
{[%clk 0:00:08.4]} 32. Bf2 {[%clk 0:00:45.8]} 32... h5 {[%clk 0:00:08.3]} 33. g4
{[%clk 0:00:45.9]} 33... hxg4 {[%clk 0:00:08.3]} 34. hxg4 {[%clk 0:00:46.8]}
34... Qe8 {[%clk 0:00:06.8]} 35. f5 {[%clk 0:00:45.8]} 35... gxf5 {[%clk
0:00:05.2]} 36. gxf5 {[%clk 0:00:46.7]} 36... exf5 {[%clk 0:00:05.2]} 37. Qxf5
{[%clk 0:00:47.3]} 37... Qd7 {[%clk 0:00:04.8]} 38. Qh5 {[%clk 0:00:44.9]} 38...
Qe7 {[%clk 0:00:03.5]} 39. Qf3 {[%clk 0:00:34.6]} 39... Nd7 {[%clk 0:00:03.1]}
40. e5 {[%clk 0:00:25]} 40... c5 {[%clk 0:00:03]} 41. dxc5 {[%clk 0:00:23.7]}
41... Nxe5 {[%clk 0:00:03.4]} 42. Qf5 {[%clk 0:00:22.6]} 42... Rxd1+ {[%clk
0:00:03]} 43. Rxd1 {[%clk 0:00:23.5]} 43... Rd8 {[%clk 0:00:02.9]} 44. Rd5
{[%clk 0:00:21.1]} 44... Re8 {[%clk 0:00:02.9]} 45. Qe4 {[%clk 0:00:16.3]} 45...
Qf6 {[%clk 0:00:01.9]} 46. Rd6 {[%clk 0:00:15.5]} 46... Re6 {[%clk 0:00:01.9]}
47. Bxe6 {[%clk 0:00:14.3]} 47... fxe6 {[%clk 0:00:02.2]} 48. c6 {[%clk
0:00:09.6]} 48... Nf7 {[%clk 0:00:02.6]} 49. Rd7 {[%clk 0:00:08.8]} 49... Qxb2
{[%clk 0:00:02.6]} 50. c7 {[%clk 0:00:08.9]} 50... Qc1+ {[%clk 0:00:02.8]} 51.
Kg2 {[%clk 0:00:08.1]} 51... Ng5 {[%clk 0:00:03.3]} 52. Rd8+ {[%clk 0:00:06.4]}
52... Kf7 {[%clk 0:00:03.8]} 53. Qe3 {[%clk 0:00:04.7]} 53... Qc6+ {[%clk
0:00:03.9]} 54. Kf1 {[%clk 0:00:05.1]} 54... Qxc7 {[%clk 0:00:04.3]} 55. Qxg5
{[%clk 0:00:05]} 55... Bf6 {[%clk 0:00:04.3]} 56. Qh5+ {[%clk 0:00:05.2]} 56...
Ke7 {[%clk 0:00:04.9]} 57. Qe8# {[%clk 0:00:05.4]} 1-0

[Event "*** Titled Tuesday Blitz"]
[Site "Chess.com"]
[Date "2020.05.05"]
[Round "8"]
[White "Sychev_Klementy"]
[Black "vanea_03"]
[Result "1-0"]
[WhiteElo "2884"]
[BlackElo "2647"]
[TimeControl "180+1"]
[EndTime "11:36:37 PDT"]
[Termination "Sychev_Klementy won by resignation"]

1. e4 {[%clk 0:03:00.9]} 1... e5 {[%clk 0:02:59.9]} 2. Nf3 {[%clk 0:02:59.6]}
2... Nc6 {[%clk 0:03:00.2]} 3. d4 {[%clk 0:02:58.3]} 3... exd4 {[%clk
0:02:58.8]} 4. Nxd4 {[%clk 0:02:57.9]} 4... Bb4+ {[%clk 0:02:59.2]} 5. c3 {[%clk
0:02:57]} 5... Be7 {[%clk 0:02:59.8]} 6. Bf4 {[%clk 0:02:38]} 6... Bf6 {[%clk
0:02:58.3]} 7. Nxc6 {[%clk 0:02:34.9]} 7... bxc6 {[%clk 0:02:57.4]} 8. e5 {[%clk
0:02:24.9]} 8... Bg5 {[%clk 0:02:56.2]} 9. Qg4 {[%clk 0:02:15.4]} 9... h6 {[%clk
0:02:56.2]} 10. h4 {[%clk 0:02:07.6]} 10... d6 {[%clk 0:02:55.8]} 11. Qg3 {[%clk
0:02:00.6]} 11... Bxf4 {[%clk 0:02:55.9]} 12. Qxf4 {[%clk 0:01:57.2]} 12... Qe7
{[%clk 0:02:48.8]} 13. Nd2 {[%clk 0:01:48.5]} 13... Qxe5+ {[%clk 0:02:43.2]} 14.
Qxe5+ {[%clk 0:01:47.3]} 14... dxe5 {[%clk 0:02:44.1]} 15. Nc4 {[%clk
0:01:46.1]} 15... f6 {[%clk 0:02:44.6]} 16. Na5 {[%clk 0:01:45.5]} 16... Ne7
{[%clk 0:02:44.6]} 17. Bc4 {[%clk 0:01:45.8]} 17... Bg4 {[%clk 0:02:31.7]} 18.
h5 {[%clk 0:01:37.6]} 18... Rd8 {[%clk 0:02:22.4]} 19. f3 {[%clk 0:01:33.8]}
19... Bc8 {[%clk 0:02:11.8]} 20. Ke2 {[%clk 0:01:24.4]} 20... Rd6 {[%clk
0:02:01.5]} 21. Rhd1 {[%clk 0:01:13.1]} 21... Nf5 {[%clk 0:01:47.9]} 22. g4
{[%clk 0:01:11.5]} 22... Rxd1 {[%clk 0:01:32.4]} 23. Rxd1 {[%clk 0:01:10.3]}
23... Nd6 {[%clk 0:01:32.9]} 24. Nxc6 {[%clk 0:01:04.5]} 24... Bb7 {[%clk
0:01:33.5]} 25. Bd5 {[%clk 0:00:58.7]} 25... Bxc6 {[%clk 0:01:30.2]} 26. Bxc6+
{[%clk 0:00:58.1]} 26... Ke7 {[%clk 0:01:30.6]} 27. c4 {[%clk 0:00:39.8]} 27...
Rd8 {[%clk 0:01:20.5]} 28. c5 {[%clk 0:00:37.3]} 28... Nf7 {[%clk 0:01:07]} 29.
Rxd8 {[%clk 0:00:16.9]} 29... Nxd8 {[%clk 0:01:07.9]} 30. Be4 {[%clk 0:00:10.3]}
30... Ne6 {[%clk 0:01:07.6]} 31. b4 {[%clk 0:00:10.3]} 31... Nd4+ {[%clk
0:01:00.6]} 32. Kd3 {[%clk 0:00:10.5]} 32... c6 {[%clk 0:00:58.7]} 33. a4 {[%clk
0:00:09.8]} 33... Ke6 {[%clk 0:00:54.6]} 34. Kc3 {[%clk 0:00:07.4]} 34... Kd7
{[%clk 0:00:47.3]} 35. Kc4 {[%clk 0:00:07.3]} 35... a6 {[%clk 0:00:45.2]} 36.
Kc3 {[%clk 0:00:07.4]} 36... Kc7 {[%clk 0:00:45.1]} 37. Kd2 {[%clk 0:00:07.2]}
37... Ne6 {[%clk 0:00:43.8]} 38. Bd3 {[%clk 0:00:06.6]} 38... Kb7 {[%clk
0:00:41.5]} 39. Bc4 {[%clk 0:00:05.9]} 39... Nd4 {[%clk 0:00:39.1]} 40. Be2
{[%clk 0:00:04.9]} 40... a5 {[%clk 0:00:39.1]} 41. bxa5 {[%clk 0:00:04.2]} 41...
Nb3+ {[%clk 0:00:39.2]} 42. Kc3 {[%clk 0:00:04]} 42... Nxc5 {[%clk 0:00:39]} 43.
Bd1 {[%clk 0:00:04.4]} 43... Ka6 {[%clk 0:00:36]} 44. Kc4 {[%clk 0:00:03.1]}
44... Ne6 {[%clk 0:00:34.5]} 45. Kb4 {[%clk 0:00:03.2]} 45... c5+ {[%clk
0:00:32.6]} 46. Kc4 {[%clk 0:00:03.3]} 46... Kxa5 {[%clk 0:00:31.3]} 47. Kd5
{[%clk 0:00:03.7]} 47... Nd4 {[%clk 0:00:16.8]} 48. Kxc5 {[%clk 0:00:03.4]}
48... f5 {[%clk 0:00:17.5]} 49. Kd5 {[%clk 0:00:01.9]} 49... fxg4 {[%clk
0:00:11.1]} 50. fxg4 {[%clk 0:00:02.8]} 50... Kb4 {[%clk 0:00:09.7]} 51. Kxe5
{[%clk 0:00:03.2]} 51... Nc6+ {[%clk 0:00:10.5]} 52. Kf5 {[%clk 0:00:03.5]}
52... Ne7+ {[%clk 0:00:06.1]} 53. Ke6 {[%clk 0:00:03.9]} 53... Ng8 {[%clk
0:00:06]} 54. Kf7 {[%clk 0:00:04.3]} 1-0

[Event "*** Titled Tuesday Blitz"]
[Site "Chess.com"]
[Date "2020.05.05"]
[Round "8"]
[White "Cocaino74"]
[Black "UCantHandleDenker"]
[Result "0-1"]
[WhiteElo "2343"]
[BlackElo "2567"]
[TimeControl "180+1"]
[EndTime "11:36:37 PDT"]
[Termination "UCantHandleDenker won by checkmate"]

1. e4 {[%clk 0:02:57.8]} 1... c5 {[%clk 0:02:59.3]} 2. Nf3 {[%clk 0:02:58.2]}
2... d6 {[%clk 0:02:59.2]} 3. Bb5+ {[%clk 0:02:58.2]} 3... Bd7 {[%clk
0:02:58.6]} 4. Bxd7+ {[%clk 0:02:57.9]} 4... Qxd7 {[%clk 0:02:58.9]} 5. c4
{[%clk 0:02:58.4]} 5... Nc6 {[%clk 0:02:58]} 6. d4 {[%clk 0:02:56.6]} 6... cxd4
{[%clk 0:02:57.9]} 7. Nxd4 {[%clk 0:02:57.2]} 7... g6 {[%clk 0:02:58.4]} 8. O-O
{[%clk 0:02:54]} 8... Bg7 {[%clk 0:02:58.4]} 9. Be3 {[%clk 0:02:54.2]} 9... Nf6
{[%clk 0:02:58.2]} 10. Nc3 {[%clk 0:02:54.5]} 10... O-O {[%clk 0:02:54.2]} 11.
f3 {[%clk 0:02:53.5]} 11... Rfc8 {[%clk 0:02:46]} 12. b3 {[%clk 0:02:34.5]}
12... Qd8 {[%clk 0:02:45.2]} 13. Qd2 {[%clk 0:02:27.4]} 13... a6 {[%clk
0:02:45.5]} 14. Rfd1 {[%clk 0:02:10.2]} 14... Rab8 {[%clk 0:02:44.4]} 15. Rac1
{[%clk 0:02:06]} 15... Qa5 {[%clk 0:01:42.6]} 16. a4 {[%clk 0:01:23.3]} 16...
Ne5 {[%clk 0:01:32.5]} 17. Qf2 {[%clk 0:00:45.7]} 17... h5 {[%clk 0:01:15.9]}
18. h3 {[%clk 0:00:26.1]} 18... Nc6 {[%clk 0:00:42]} 19. g4 {[%clk 0:00:16.3]}
19... hxg4 {[%clk 0:00:20.5]} 20. hxg4 {[%clk 0:00:17.2]} 20... Qb4 {[%clk
0:00:18.4]} 21. Na2 {[%clk 0:00:06.6]} 21... Qa3 {[%clk 0:00:15.7]} 22. Kg2
{[%clk 0:00:03.7]} 22... Nxd4 {[%clk 0:00:15.2]} 23. Bxd4 {[%clk 0:00:04.4]}
23... Qxb3 {[%clk 0:00:15]} 24. c5 {[%clk 0:00:03.9]} 24... Qxa4 {[%clk
0:00:10.1]} 25. cxd6 {[%clk 0:00:03.6]} 25... exd6 {[%clk 0:00:10.6]} 26. g5
{[%clk 0:00:02.7]} 26... Nh5 {[%clk 0:00:10.3]} 27. Bxg7 {[%clk 0:00:02.8]}
27... Nxg7 {[%clk 0:00:10.7]} 28. Rxc8+ {[%clk 0:00:01.2]} 28... Rxc8 {[%clk
0:00:10.7]} 29. Rxd6 {[%clk 0:00:01.8]} 29... Ne6 {[%clk 0:00:08.5]} 30. Kg3
{[%clk 0:00:01.6]} 30... Qa5 {[%clk 0:00:07.2]} 31. Qb2 {[%clk 0:00:02]} 31...
Qxg5+ {[%clk 0:00:07.1]} 32. Kf2 {[%clk 0:00:02.6]} 32... Qe7 {[%clk 0:00:07.1]}
33. e5 {[%clk 0:00:02.4]} 33... Qc7 {[%clk 0:00:07.1]} 34. Rd2 {[%clk
0:00:02.3]} 34... Qc5+ {[%clk 0:00:07.2]} 35. Kf1 {[%clk 0:00:02.2]} 35... b5
{[%clk 0:00:07]} 36. Nb4 {[%clk 0:00:01.7]} 36... a5 {[%clk 0:00:06]} 37. Nd5
{[%clk 0:00:02.2]} 37... Kg7 {[%clk 0:00:06]} 38. Nf6 {[%clk 0:00:02.8]} 38...
Qc1+ {[%clk 0:00:06.1]} 39. Qxc1 {[%clk 0:00:02.8]} 39... Rxc1+ {[%clk
0:00:06.5]} 40. Kf2 {[%clk 0:00:03]} 40... Rc5 {[%clk 0:00:07.4]} 41. Kg3 {[%clk
0:00:02.8]} 41... Rxe5 {[%clk 0:00:07.6]} 42. Nd7 {[%clk 0:00:03.1]} 42... Rg5+
{[%clk 0:00:07.1]} 43. Kf2 {[%clk 0:00:03.1]} 43... Rf5 {[%clk 0:00:07.7]} 44.
Nb6 {[%clk 0:00:02.9]} 44... b4 {[%clk 0:00:07.8]} 45. Nc4 {[%clk 0:00:03]}
45... a4 {[%clk 0:00:07.7]} 46. Nd6 {[%clk 0:00:03.3]} 46... Ra5 {[%clk
0:00:06.8]} 47. Ra2 {[%clk 0:00:02.5]} 47... b3 {[%clk 0:00:06.9]} 48. Ra3
{[%clk 0:00:02.3]} 48... b2 {[%clk 0:00:06.8]} 49. Nc4 {[%clk 0:00:03]} 49...
Rc5 {[%clk 0:00:06.5]} 50. Na5 {[%clk 0:00:03.9]} 50... Rxa5 {[%clk 0:00:05.3]}
51. Ra1 {[%clk 0:00:03.7]} 51... Rb5 {[%clk 0:00:05.7]} 52. Rb1 {[%clk
0:00:03.8]} 52... a3 {[%clk 0:00:06.3]} 53. Rh1 {[%clk 0:00:04.4]} 53... a2
{[%clk 0:00:06.8]} 54. Kg3 {[%clk 0:00:05.2]} 54... b1=Q {[%clk 0:00:06.8]} 55.
Rh7+ {[%clk 0:00:06.1]} 55... Kxh7 {[%clk 0:00:06.4]} 56. Kg4 {[%clk 0:00:07]}
56... Kg7 {[%clk 0:00:07.3]} 57. f4 {[%clk 0:00:07.9]} 57... Qf5+ {[%clk
0:00:07.1]} 58. Kh4 {[%clk 0:00:07.8]} 58... Rb4 {[%clk 0:00:06.5]} 59. Kg3
{[%clk 0:00:07.5]} 59... Qxf4+ {[%clk 0:00:07]} 60. Kg2 {[%clk 0:00:07.8]} 60...
Rb2+ {[%clk 0:00:07.5]} 61. Kh1 {[%clk 0:00:08.7]} 61... a1=Q# {[%clk
0:00:07.5]} 0-1

[Event "*** Titled Tuesday Blitz"]
[Site "Chess.com"]
[Date "2020.05.05"]
[Round "8"]
[White "abubakrtagelsir"]
[Black "mirciulica14"]
[Result "0-1"]
[WhiteElo "2349"]
[BlackElo "2602"]
[TimeControl "180+1"]
[EndTime "11:36:38 PDT"]
[Termination "mirciulica14 won by checkmate"]

1. e4 {[%clk 0:02:59.1]} 1... e5 {[%clk 0:02:56.9]} 2. Nf3 {[%clk 0:02:58.6]}
2... Nc6 {[%clk 0:02:57.7]} 3. d4 {[%clk 0:02:58.1]} 3... exd4 {[%clk
0:02:57.6]} 4. Bc4 {[%clk 0:02:57.6]} 4... Nf6 {[%clk 0:02:57.8]} 5. e5 {[%clk
0:02:56.1]} 5... d5 {[%clk 0:02:57.5]} 6. Bb5 {[%clk 0:02:56]} 6... Ne4 {[%clk
0:02:58.2]} 7. Nxd4 {[%clk 0:02:54.8]} 7... Bd7 {[%clk 0:02:58.9]} 8. Bxc6
{[%clk 0:02:53.8]} 8... bxc6 {[%clk 0:02:59.8]} 9. O-O {[%clk 0:02:52.9]} 9...
Bc5 {[%clk 0:03:00.1]} 10. f3 {[%clk 0:02:52.1]} 10... Ng5 {[%clk 0:03:00.1]}
11. f4 {[%clk 0:02:52.1]} 11... Ne4 {[%clk 0:03:00.8]} 12. Be3 {[%clk
0:02:51.8]} 12... Bb6 {[%clk 0:03:00.7]} 13. Nc3 {[%clk 0:02:50.4]} 13... c5
{[%clk 0:02:48.9]} 14. Nb3 {[%clk 0:02:49.9]} 14... Nxc3 {[%clk 0:02:35.7]} 15.
bxc3 {[%clk 0:02:49.3]} 15... c4 {[%clk 0:02:35.1]} 16. Nd4 {[%clk 0:02:27.1]}
16... c5 {[%clk 0:02:28.6]} 17. Ne2 {[%clk 0:02:24.8]} 17... Bc6 {[%clk
0:02:20.6]} 18. f5 {[%clk 0:02:04.8]} 18... Qd7 {[%clk 0:02:19.1]} 19. Ng3
{[%clk 0:01:43.8]} 19... O-O-O {[%clk 0:02:17.5]} 20. a4 {[%clk 0:01:36.5]}
20... a5 {[%clk 0:02:12.9]} 21. Bf4 {[%clk 0:01:17.1]} 21... Kb7 {[%clk
0:02:03.6]} 22. Rb1 {[%clk 0:01:16.1]} 22... Ka6 {[%clk 0:02:03.4]} 23. Qe2
{[%clk 0:01:10.9]} 23... Rhe8 {[%clk 0:02:02.5]} 24. Rb2 {[%clk 0:01:06.8]}
24... Ba7 {[%clk 0:01:49.8]} 25. Re1 {[%clk 0:00:48.3]} 25... Bxa4 {[%clk
0:00:51.2]} 26. Ra1 {[%clk 0:00:40]} 26... Bc6 {[%clk 0:00:49.1]} 27. Qf1 {[%clk
0:00:30.3]} 27... Rb8 {[%clk 0:00:44.3]} 28. e6 {[%clk 0:00:29.6]} 28... fxe6
{[%clk 0:00:42.8]} 29. Bxb8 {[%clk 0:00:29.1]} 29... Rxb8 {[%clk 0:00:42.9]} 30.
Rxb8 {[%clk 0:00:26.7]} 30... Bxb8 {[%clk 0:00:43.8]} 31. fxe6 {[%clk
0:00:26.5]} 31... Qxe6 {[%clk 0:00:44.7]} 32. Re1 {[%clk 0:00:24.1]} 32... Qf6
{[%clk 0:00:41.2]} 33. Qxf6 {[%clk 0:00:22.7]} 33... gxf6 {[%clk 0:00:42.1]} 34.
Re6 {[%clk 0:00:21.4]} 34... Kb5 {[%clk 0:00:42.6]} 35. Ne2 {[%clk 0:00:20.9]}
35... Be5 {[%clk 0:00:41.3]} 36. Kf2 {[%clk 0:00:16.8]} 36... a4 {[%clk
0:00:41.5]} 37. Ke3 {[%clk 0:00:11.5]} 37... a3 {[%clk 0:00:41.6]} 38. Nc1
{[%clk 0:00:11.9]} 38... Bxc3 {[%clk 0:00:41]} 39. Na2 {[%clk 0:00:12.1]} 39...
Be5 {[%clk 0:00:16.3]} 40. Re7 {[%clk 0:00:10]} 40... d4+ {[%clk 0:00:15.2]} 41.
Kd2 {[%clk 0:00:09]} 41... c3+ {[%clk 0:00:15.4]} 42. Kc1 {[%clk 0:00:08.9]}
42... Bd5 {[%clk 0:00:16]} 43. Kb1 {[%clk 0:00:08.1]} 43... Bxh2 {[%clk
0:00:11.9]} 44. Rxh7 {[%clk 0:00:08]} 44... Be5 {[%clk 0:00:12.2]} 45. Rg7
{[%clk 0:00:08.2]} 45... c4 {[%clk 0:00:11.4]} 46. Rg6 {[%clk 0:00:07.2]} 46...
d3 {[%clk 0:00:11.7]} 47. cxd3 {[%clk 0:00:04.1]} 47... cxd3 {[%clk 0:00:12.6]}
48. Rg4 {[%clk 0:00:03.9]} 48... c2+ {[%clk 0:00:11.3]} 49. Kc1 {[%clk 0:00:04]}
49... Bb2+ {[%clk 0:00:11.7]} 50. Kd2 {[%clk 0:00:04.2]} 50... Bxa2 {[%clk
0:00:12.5]} 51. Rf4 {[%clk 0:00:03.6]} 51... c1=Q+ {[%clk 0:00:12.6]} 52. Kxd3
{[%clk 0:00:04.5]} 52... Qxf4 {[%clk 0:00:13.5]} 53. Kc2 {[%clk 0:00:04.1]}
53... Qc4+ {[%clk 0:00:12.3]} 54. Kd2 {[%clk 0:00:03.9]} 54... Bc1+ {[%clk
0:00:12.8]} 55. Kd1 {[%clk 0:00:03.2]} 55... Qd3+ {[%clk 0:00:13.2]} 56. Kxc1
{[%clk 0:00:03.4]} 56... Bb3 {[%clk 0:00:13.8]} 57. g4 {[%clk 0:00:03.2]} 57...
Qc2# {[%clk 0:00:14.7]} 0-1